fUST/lending_fUST_20250608
["ID","MTS","AMOUNT","RATE_DAILY","PERIOD"]
[364952042,1749345035811,-420.0,0.00022461,2]
[364952043,1749345035820,-395.39154664,0.00022461,2]
[364952044,1749345035831,-440.0,0.00022461,2]
[364952045,1749345035841,-440.0,0.00022461,2]
[364952046,1749345035852,-440.0,0.00022461,2]
[364952047,1749345035863,-500.0,0.00022461,2]
[364952048,1749345035873,-440.0,0.00022461,2]
[364952049,1749345035883,-440.0,0.00022461,2]
[364952050,1749345035892,-458.68033294,0.00022461,2]
[364952051,1749345035902,-440.0,0.00022461,2]
[364952052,1749345035913,-440.0,0.00022461,2]
[364952053,1749345035923,-440.0,0.00022461,2]
[364952054,1749345035933,-554.33991269,0.00022461,2]
[364952055,1749345035943,-440.0,0.00022461,2]
[364952056,1749345035953,-440.0,0.00022461,2]
[364952057,1749345035963,-440.0,0.00022461,2]
[364952058,1749345035973,-440.0,0.00022461,2]
[364952059,1749345035983,-440.0,0.00022461,2]
[364952060,1749345035992,-440.0,0.00022461,2]
[364952061,1749345036003,-440.0,0.00022461,2]
[364952062,1749345036012,-440.0,0.00022461,2]
[364952063,1749345036023,-420.0,0.00022461,2]
[364952064,1749345036032,-440.0,0.00022461,2]
[364952065,1749345036042,-440.0,0.00022461,2]
[364952066,1749345036052,-440.0,0.00022461,2]
[364952067,1749345036062,-440.0,0.00022461,2]
[364952068,1749345036072,-440.0,0.00022461,2]
[364952069,1749345036082,-440.0,0.00022461,2]
[364952070,1749345036092,-440.0,0.00022461,2]
[364952071,1749345036102,-500.0,0.00022473,2]
[364952072,1749345036112,-500.0,0.00022473,2]
[364952073,1749345036122,-500.0,0.00022473,2]
[364952074,1749345036134,-500.0,0.00022473,2]
[364952075,1749345036145,-224.44317403,0.00022473,2]
[364952076,1749345036155,-500.0,0.00022473,2]
[364952077,1749345036165,-500.0,0.00022473,2]
[364952078,1749345036175,-500.0,0.00022473,2]
[364952079,1749345036184,-241.0,0.00022552,2]
[364952080,1749345036194,-912.0,0.00022552,2]
[364952081,1749345036204,-440.0,0.00022552,2]
[364952082,1749345036215,-440.0,0.00022552,2]
[364952083,1749345036226,-440.0,0.00022552,2]
[364952084,1749345036236,-440.0,0.00022552,2]
[364952085,1749345036246,-440.0,0.00022552,2]
[364952086,1749345036258,-339.73,0.00022552,2]
[364952087,1749345036268,-396.94184363,0.0002261,2]
[364952088,1749345036278,-500.0,0.0002261,2]
[364952089,1749345036288,-528.57068745,0.0002261,2]
[364952090,1749345036298,-962.0,0.00022626,2]
[364952091,1749345036309,-382.59019627,0.00022693,2]
[364952092,1749345036319,-440.0,0.00022729,2]
[364952093,1749345036330,-440.0,0.00022729,2]
[364952094,1749345036340,-440.0,0.00022729,2]
[364952095,1749345036351,-440.0,0.00022729,2]
[364952096,1749345036361,-352.79546738,0.00022729,2]
[364952097,1749345036371,-440.0,0.00022729,2]
[364952098,1749345036381,-440.0,0.00022729,2]
[364952099,1749345036391,-440.0,0.00022729,2]
[364952100,1749345036518,-440.0,0.00022729,2]
[364952101,1749345036541,-440.0,0.00022729,2]
[364952102,1749345036552,-440.0,0.00022729,2]
[364952103,1749345036561,-440.0,0.00022729,2]
[364952104,1749345036572,-440.0,0.00022729,2]
[364952105,1749345036584,-440.0,0.00022729,2]
[364952106,1749345036605,-440.0,0.00022729,2]
[364952107,1749345036616,-440.0,0.00022729,2]
[364952108,1749345036626,-410.0,0.00022729,2]
[364952109,1749345036636,-403.42898893,0.00022729,2]
[364952110,1749345036646,-430.0,0.00022729,2]
[364952111,1749345036656,-440.0,0.00022729,2]
[364952112,1749345036666,-440.0,0.00022729,2]
[364952113,1749345036676,-440.0,0.00022729,2]
[364952114,1749345036686,-440.0,0.00022729,2]
[364952115,1749345036695,-440.0,0.00022729,2]
[364952116,1749345036705,-430.0,0.00022729,2]
[364952117,1749345036715,-440.0,0.00022729,2]
[364952118,1749345036726,-430.0,0.00022729,2]
[364952119,1749345036736,-440.0,0.00022729,2]
[364952120,1749345036747,-440.0,0.00022729,2]
[364952121,1749345036758,-430.0,0.00022729,2]
[364952122,1749345036768,-343.66879871,0.00022729,2]
[364952123,1749345036778,-440.0,0.00022729,2]
[364952124,1749345036788,-440.0,0.00022729,2]
[364952125,1749345036798,-430.0,0.00022729,2]
[364952126,1749345036808,-440.0,0.00022729,2]
[364952127,1749345036818,-350.0,0.00022729,2]
[364952128,1749345036827,-440.0,0.00022729,2]
[364952129,1749345036837,-440.0,0.00022729,2]
[364952130,1749345036848,-440.0,0.00022729,2]
[364952131,1749345036858,-440.0,0.00022729,2]
[364952132,1749345036868,-551.53094461,0.00022729,2]
[364952133,1749345036877,-174.58498577,0.00022729,2]
[364952134,1749345036887,-420.0,0.00022729,2]
[364952135,1749345036896,-430.0,0.00022729,2]
[364952136,1749345036906,-440.0,0.00022729,2]
[364952137,1749345036916,-440.0,0.00022729,2]
[364952138,1749345036925,-430.0,0.00022729,2]
[364952139,1749345036935,-440.0,0.00022729,2]
[364952140,1749345036944,-440.0,0.00022729,2]
[364952141,1749345036953,-440.0,0.00022729,2]
[364952142,1749345036963,-432.75783393,0.00022729,2]
[364952143,1749345036972,-440.0,0.00022729,2]
[364952144,1749345036982,-443.35867381,0.00022729,2]
[364952145,1749345036991,-440.0,0.00022729,2]
[364952146,1749345037001,-517.17,0.00022729,2]
[364952147,1749345037010,-430.46929779,0.00022729,2]
[364952148,1749345037020,-430.0,0.00022729,2]
[364952149,1749345037031,-151.0,0.00022729,7]
[364952150,1749345037041,-440.0,0.00022729,2]
[364952151,1749345037051,-151.0,0.00022729,7]
[364952152,1749345037060,-440.0,0.00022729,2]
[364952153,1749345037070,-151.0,0.00022729,7]
[364952154,1749345037079,-151.0,0.00022729,7]
[364952155,1749345037091,-440.0,0.00022729,2]
[364952156,1749345037101,-255.657368,0.00022729,7]
[364952157,1749345037111,-255.657368,0.00022729,7]
[364952158,1749345037121,-440.0,0.00022729,2]
[364952159,1749345037132,-480.38358339,0.00022729,2]
[364952160,1749345037145,-430.0,0.0002273,2]
[364952161,1749345037156,-430.0,0.0002273,2]
[364952162,1749345037168,-430.0,0.0002273,2]
[364952163,1749345037180,-151.0,0.0002273,7]
[364952164,1749345037191,-151.0,0.0002273,7]
[364952165,1749345037201,-151.0,0.0002273,7]
[364952166,1749345037211,-151.0,0.0002273,7]
[364952167,1749345037222,-410.0,0.00022731,2]
[364952168,1749345037232,-440.0,0.00022731,2]
[364952169,1749345037241,-352.27976703,0.00022731,2]
[364952170,1749345037251,-440.0,0.00022731,2]
[364952171,1749345037261,-440.0,0.00022731,2]
[364952172,1749345037271,-440.0,0.00022731,2]
[364952173,1749345037280,-440.0,0.00022731,2]
[364952174,1749345037290,-440.0,0.00022731,2]
[364952175,1749345037300,-440.0,0.00022731,2]
[364952176,1749345037310,-440.0,0.00022731,2]
[364952177,1749345037320,-440.0,0.00022731,2]
[364952178,1749345037329,-440.0,0.00022731,2]
[364952179,1749345037338,-430.0,0.00022733,2]
[364952180,1749345037348,-440.0,0.00022733,2]
[364952181,1749345037357,-440.0,0.00022733,2]
[364952182,1749345037367,-151.0,0.00022733,7]
[364952183,1749345037376,-151.0,0.00022733,7]
[364952184,1749345037386,-151.0,0.00022733,7]
[364952185,1749345037396,-403.733356,0.00022733,7]
[364952186,1749345037406,-403.733356,0.00022733,7]
[364952187,1749345037415,-430.0,0.00022735,2]
[364952189,1749345037425,-440.0,0.00022735,2]
[364952190,1749345037434,-440.0,0.00022735,2]
[364952191,1749345037443,-558.79518031,0.00022735,2]
[364952192,1749345037453,-440.0,0.00022735,2]
[364952193,1749345037463,-440.0,0.00022735,2]
[364952194,1749345037473,-440.0,0.00022735,2]
[364952195,1749345037482,-440.0,0.00022735,2]
[364952196,1749345037492,-434.34168179,0.00022735,2]
[364952197,1749345037502,-440.0,0.00022735,2]
[364952198,1749345037511,-418.33052556,0.00022735,2]
[364952199,1749345037521,-440.0,0.00022735,2]
[364952201,1749345037531,-440.0,0.00022735,2]
[364952203,1749345037541,-432.74436489,0.00022735,2]
[364952205,1749345037550,-431.9382286,0.00022735,2]
[364952207,1749345037560,-421.12883978,0.00022735,2]
[364952209,1749345037569,-440.0,0.00022735,2]
[364952211,1749345037579,-440.0,0.00022735,2]
[364952213,1749345037598,-151.0,0.00022735,7]
[364952216,1749345037611,-151.0,0.00022735,7]
[364952218,1749345037621,-151.0,0.00022735,7]
[364952220,1749345037631,-151.0,0.00022735,7]
[364952222,1749345037640,-151.0,0.00022735,7]
[364952224,1749345037650,-631.33859309,0.00022747,2]
[364952226,1749345037661,-500.02250992,0.00022786,2]
[364952228,1749345037670,-912.0,0.00022826,2]
[364952230,1749345037680,-440.0,0.00022826,2]
[364952232,1749345037691,-440.0,0.00022826,2]
[364952234,1749345037701,-440.0,0.00022826,2]
[364952236,1749345037713,-440.0,0.00022826,2]
[364952238,1749345037723,-440.0,0.00022826,2]
[364952240,1749345037734,-1000.0,0.00022841,2]
[364952242,1749345037744,-215.0738,0.00022958,2]
[364952244,1749345037754,-157.69,0.00023003,2]
[364952246,1749345037764,-440.0,0.00023003,2]
[364952248,1749345037774,-440.0,0.00023003,2]
[364952250,1749345037784,-151.0,0.00023003,7]
[364952252,1749345037794,-258.891886,0.00023003,7]
[364952254,1749345037804,-151.0,0.00023003,7]
[364952256,1749345037814,-844.90271,0.00023003,2]
[364952258,1749345037823,-151.0,0.00023003,7]
[364952260,1749345037833,-426.36782487,0.00023003,2]
[364952286,1749345038072,-440.0,0.00022455,2]
[364952288,1749345038082,-440.0,0.00022455,2]
[364952290,1749345038091,-500.0,0.00022456,2]
[364952292,1749345038100,-500.0,0.00022458,2]
[364952294,1749345038110,-405.0,0.0002252,2]
[364952296,1749345038120,-420.0,0.00022729,2]
[364952298,1749345038130,-151.0,0.00022729,7]
[364952300,1749345038144,-418.53488513,0.00023003,2]
[364952302,1749345038154,-151.0,0.00023003,7]
[364952304,1749345038163,-430.0,0.00023003,2]
[364952306,1749345038174,-440.0,0.00023003,2]
[364952308,1749345038184,-440.0,0.00023003,2]
[364952310,1749345038194,-440.0,0.00023003,2]
[364952312,1749345038203,-440.0,0.00023003,2]
[364952314,1749345038215,-430.0,0.00023003,2]
[364952316,1749345038226,-440.0,0.00023003,2]
[364952318,1749345038236,-440.0,0.00023003,2]
[364952320,1749345038246,-440.0,0.00023003,2]
[364952322,1749345038261,-430.0,0.00023003,2]
[364952323,1749345038271,-440.0,0.00023003,2]
[364952324,1749345038281,-350.0,0.00023003,2]
[364952325,1749345038291,-440.0,0.00023003,2]
[364952327,1749345038302,-440.0,0.00023003,2]
[364952328,1749345038311,-440.0,0.00023003,2]
[364952329,1749345038322,-440.0,0.00023003,2]
[364952330,1749345038332,-440.0,0.00023003,2]
[364952331,1749345038342,-440.0,0.00023003,2]
[364952332,1749345038352,-440.0,0.00023003,2]
[364952333,1749345038362,-440.0,0.00023003,2]
[364952334,1749345038371,-440.0,0.00023003,2]
[364952335,1749345038381,-517.17,0.00023003,2]
[364952336,1749345038395,-440.0,0.00023003,2]
[364952337,1749345038406,-440.0,0.00023003,2]
[364952338,1749345038417,-151.0,0.00023004,7]
[364952339,1749345038427,-282.153287,0.00023004,7]
[364952340,1749345038436,-151.0,0.00023004,7]
[364952341,1749345038446,-151.0,0.00023004,7]
[364952342,1749345038455,-151.0,0.00023005,7]
[364952343,1749345038466,-151.0,0.00023005,7]
[364952344,1749345038475,-151.0,0.00023005,7]
[364952345,1749345038485,-151.0,0.00023005,7]
[364952346,1749345038496,-151.0,0.00023005,7]
[364952347,1749345038505,-151.0,0.00023005,7]
[364952348,1749345038515,-151.0,0.00023005,7]
[364952349,1749345038525,-440.0,0.00023005,2]
[364952350,1749345038535,-440.0,0.00023005,2]
[364952351,1749345038545,-430.0,0.00023005,2]
[364952352,1749345038555,-440.0,0.00023005,2]
[364952353,1749345038565,-272.08207253,0.00023005,2]
[364952354,1749345038575,-151.0,0.00023005,7]
[364952355,1749345038585,-440.0,0.00023005,2]
[364952356,1749345038595,-151.0,0.00023005,7]
[364952357,1749345038606,-151.0,0.00023005,7]
[364952358,1749345038617,-14676.57862499,0.00023012,2]
[364952359,1749345038627,-151.0,0.00023012,7]
[364952360,1749345038638,-151.0,0.00023012,7]
[364952361,1749345038649,-151.0,0.00023012,7]
[364952362,1749345038659,-255.657368,0.00023012,7]
[364952363,1749345038671,-255.657368,0.00023012,7]
[364952364,1749345038681,-159.140728,0.00023012,7]
[364952365,1749345038691,-15631.33478216,0.00023013,2]
[364952366,1749345038701,-12500.0,0.00023013,3]
[364952367,1749345038710,-229.56495552,0.00023013,3]
[364952368,1749345038720,-151.0,0.00023013,7]
[364952369,1749345038729,-151.0,0.00023013,7]
[364952370,1749345038740,-213.01382694,0.00023013,3]
[364952371,1749345038750,-151.0,0.00023013,7]
[364952372,1749345038759,-403.733356,0.00023013,7]
[364952373,1749345038768,-403.733356,0.00023013,7]
[364952374,1749345038777,-500.0,0.00023021,2]
[364952375,1749345038787,-382.59019627,0.00023029,2]
[364952376,1749345038797,-500.0,0.0002305,2]
[364952377,1749345038809,-151.0,0.000231,7]
[364952378,1749345038818,-151.0,0.000231,7]
[364952379,1749345038827,-151.0,0.000231,7]
[364952380,1749345038836,-912.0,0.000231,2]
[364952381,1749345038847,-440.0,0.000231,2]
[364952382,1749345038856,-440.0,0.000231,2]
[364952383,1749345038866,-440.0,0.000231,2]
[364952384,1749345038875,-440.0,0.000231,2]
[364952385,1749345038885,-440.0,0.000231,2]
[364952386,1749345038895,-440.0,0.00023277,2]
[364952387,1749345038905,-440.0,0.00023277,2]
[364952388,1749345038914,-440.0,0.00023277,2]
[364952389,1749345038924,-440.0,0.00023277,2]
[364952390,1749345038933,-440.0,0.00023277,2]
[364952391,1749345038944,-440.0,0.00023277,2]
[364952392,1749345038954,-230.93736201,0.00023277,2]
[364952415,1749345045855,-440.0,0.00020634,2]
[364952416,1749345045867,-5000.0,0.0002223,2]
[364952417,1749345045878,-440.0,0.00022455,2]
[364952420,1749345046029,-430.0,0.00022455,2]
[364952422,1749345046039,-209.06263799,0.00023277,2]
[364952423,1749345046048,-440.0,0.00023277,2]
[364952424,1749345046058,-440.0,0.00023277,2]
[364952425,1749345046068,-350.0,0.00023277,2]
[364952426,1749345046079,-440.0,0.00023277,2]
[364952427,1749345046089,-440.0,0.00023277,2]
[364952428,1749345046099,-440.0,0.00023277,2]
[364952429,1749345046109,-440.0,0.00023277,2]
[364952430,1749345046119,-440.0,0.00023277,2]
[364952431,1749345046128,-440.0,0.00023277,2]
[364952432,1749345046140,-440.0,0.00023277,2]
[364952433,1749345046149,-517.17,0.00023277,2]
[364952434,1749345046161,-440.0,0.00023277,2]
[364952435,1749345046171,-440.0,0.00023277,2]
[364952436,1749345046183,-151.0,0.00023278,7]
[364952437,1749345046192,-844.90271,0.00023278,2]
[364952438,1749345046203,-151.0,0.00023278,7]
[364952439,1749345046213,-844.90271,0.00023278,2]
[364952440,1749345046223,-560.0,0.00023279,2]
[364952441,1749345046233,-440.0,0.00023279,2]
[364952442,1749345046243,-440.0,0.00023279,2]
[364952443,1749345046253,-440.0,0.00023279,2]
[364952444,1749345046263,-151.0,0.00023279,7]
[364952445,1749345046273,-151.0,0.00023279,7]
[364952446,1749345046283,-618.811424,0.00023318,3]
[364952447,1749345046293,-382.59019627,0.00023364,2]
[364952448,1749345046303,-912.0,0.00023373,2]
[364952449,1749345046313,-440.0,0.00023373,2]
[364952450,1749345046322,-375.49,0.00023373,2]
[364952451,1749345046333,-440.0,0.00023373,2]
[364952452,1749345046343,-440.0,0.00023373,2]
[364952453,1749345046353,-440.0,0.00023373,2]
[364952454,1749345046362,-151.0,0.00023549,7]
[364952455,1749345046372,-345.54840054,0.00023551,2]
[364952456,1749345046382,-440.0,0.00023551,2]
[364952457,1749345046393,-151.0,0.00023551,7]
[364952458,1749345046403,-151.0,0.00023551,7]
[364952459,1749345046414,-440.0,0.00023551,2]
[364952460,1749345046424,-440.0,0.00023551,2]
[364952461,1749345046434,-440.0,0.00023551,2]
[364952462,1749345046444,-440.0,0.00023551,2]
[364952463,1749345046454,-440.0,0.00023551,2]
[364952464,1749345046464,-151.0,0.00023551,7]
[364952465,1749345046476,-440.0,0.00023551,2]
[364952466,1749345046488,-350.0,0.00023551,2]
[364952467,1749345046497,-440.0,0.00023551,2]
[364952468,1749345046507,-440.0,0.00023551,2]
[364952469,1749345046518,-151.0,0.00023551,7]
[364952470,1749345046529,-403.733356,0.00023551,7]
[364952471,1749345046539,-403.733356,0.00023551,7]
[364952472,1749345046549,-440.0,0.00023551,2]
[364952473,1749345046558,-151.0,0.00023551,7]
[364952474,1749345046568,-440.0,0.00023551,2]
[364952475,1749345046578,-440.0,0.00023551,2]
[364952476,1749345046587,-440.0,0.00023551,2]
[364952477,1749345046597,-440.0,0.00023551,2]
[364952478,1749345046607,-517.17,0.00023551,2]
[364952479,1749345046616,-151.0,0.00023551,7]
[364952480,1749345046627,-440.0,0.00023551,2]
[364952481,1749345046639,-157.670038,0.00023551,7]
[364952482,1749345046649,-255.657368,0.00023551,7]
[364952483,1749345046659,-255.657368,0.00023551,7]
[364952484,1749345046670,-151.0,0.00023552,7]
[364952485,1749345046680,-151.0,0.00023552,7]
[364952486,1749345046690,-276.559556,0.00023552,7]
[364952487,1749345046700,-151.0,0.00023552,7]
[364952488,1749345046712,-151.0,0.00023553,7]
[364952489,1749345046722,-151.0,0.00023553,7]
[364952490,1749345046733,-151.0,0.00023553,7]
[364952491,1749345046743,-380.0,0.00023553,2]
[364952492,1749345046753,-440.0,0.00023553,2]
[364952493,1749345046763,-430.0,0.00023553,2]
[364952494,1749345046773,-213.01382694,0.00023553,7]
[364952495,1749345046784,-2797.05,0.00023599,2]
[364952496,1749345046794,-94484.5,0.000236,7]
[364952497,1749345046804,-151.0,0.000236,7]
[364952498,1749345046814,-151.0,0.000236,7]
[364952499,1749345046824,-151.0,0.000236,7]
[364952500,1749345046834,-844.90271,0.000236,2]
[364952501,1749345046843,-151.0,0.000236,7]
[364952502,1749345046854,-844.90271,0.000236,2]
[364952503,1749345046863,-248.790058,0.000236,7]
[364952504,1749345046873,-151.0,0.000236,7]
[364952505,1749345046882,-151.0,0.000236,7]
[364952506,1749345046892,-151.0,0.000236,7]
[364952507,1749345046902,-403.733356,0.000236,7]
[364952508,1749345046913,-403.733356,0.000236,7]
[364952509,1749345046923,-151.0,0.000236,7]
[364952510,1749345046934,-151.0,0.000236,7]
[364952511,1749345046944,-255.657368,0.000236,7]
[364952512,1749345046954,-255.657368,0.000236,7]
[364952513,1749345046964,-912.0,0.00023647,2]
[364952514,1749345046974,-440.0,0.00023647,2]
[364952515,1749345046985,-440.0,0.00023647,2]
[364952516,1749345046995,-440.0,0.00023647,2]
[364952517,1749345047005,-440.0,0.00023647,2]
[364952518,1749345047015,-382.59019627,0.000237,2]
[364952519,1749345047026,-145679.73496099,0.000238,3]
[364952520,1749345047036,-946.6,0.000238,7]
[364952521,1749345047048,-517.41,0.000238,7]
[364952522,1749345047058,-151.0,0.000238,7]
[364952523,1749345047076,-151.0,0.000238,7]
[364952524,1749345047091,-844.90271,0.000238,2]
[364952525,1749345047101,-151.0,0.000238,7]
[364952526,1749345047111,-844.90271,0.000238,2]
[364952527,1749345047122,-151.0,0.000238,7]
[364952528,1749345047134,-293.802264,0.000238,7]
[364952529,1749345047147,-151.0,0.000238,7]
[364952530,1749345047157,-403.733356,0.000238,7]
[364952531,1749345047167,-403.733356,0.000238,7]
[364952532,1749345047177,-151.0,0.000238,7]
[364952533,1749345047190,-151.0,0.000238,7]
[364952534,1749345047200,-255.657368,0.000238,7]
[364952535,1749345047211,-255.657368,0.000238,7]
[364952536,1749345047222,-160.0,0.00023804,3]
[364952537,1749345047232,-160.0,0.00023804,5]
[364952538,1749345047243,-380.0,0.00023825,2]
[364952539,1749345047253,-440.0,0.00023825,2]
[364952540,1749345047263,-390.0,0.00023825,2]
[364952541,1749345047274,-440.0,0.00023825,2]
[364952542,1749345047284,-440.0,0.00023825,2]
[364952543,1749345047294,-448.22,0.00023825,2]
[364952544,1749345047304,-440.0,0.00023825,2]
[364952545,1749345047314,-350.0,0.00023825,2]
[364952546,1749345047324,-380.0,0.00023825,2]
[364952547,1749345047334,-440.0,0.00023825,2]
[364952548,1749345047345,-434.01025371,0.00023825,2]
[364952549,1749345047354,-440.0,0.00023825,2]
[364952550,1749345047364,-440.0,0.00023825,2]
[364952551,1749345047374,-440.0,0.00023825,2]
[364952552,1749345047385,-517.17,0.00023825,2]
[364952553,1749345047395,-440.0,0.00023825,2]
[364952554,1749345047405,-440.0,0.00023827,2]
[364952555,1749345047416,-912.0,0.00023921,2]
[364952556,1749345047425,-440.0,0.00023921,2]
[364952557,1749345047435,-440.0,0.00023921,2]
[364952558,1749345047445,-440.0,0.00023921,2]
[364952559,1749345047455,-440.0,0.00023921,2]
[364952560,1749345047465,-312.98840601,0.00023934,10]
[364952561,1749345047475,-1672.32,0.00024,2]
[364952562,1749345047484,-312.98840601,0.00024072,10]
[364952563,1749345047494,-440.0,0.00024099,2]
[364952564,1749345047504,-440.0,0.00024099,2]
[364952565,1749345047514,-440.0,0.00024099,2]
[364952566,1749345047524,-440.0,0.00024099,2]
[364952567,1749345047534,-350.0,0.00024099,2]
[364952568,1749345047543,-440.0,0.00024099,2]
[364952569,1749345047553,-430.0,0.00024099,2]
[364952570,1749345047562,-440.0,0.00024099,2]
[364952571,1749345047571,-440.0,0.00024099,2]
[364952572,1749345047580,-517.17,0.00024099,2]
[364952573,1749345047589,-440.0,0.00024099,2]
[364952574,1749345047600,-440.0,0.00024101,2]
[364952575,1749345047610,-2200.0,0.00024105,2]
[364952576,1749345047621,-912.0,0.00024195,2]
[364952577,1749345047631,-440.0,0.00024195,2]
[364952578,1749345047642,-489.01,0.00024195,2]
[364952579,1749345047653,-440.0,0.00024195,2]
[364952580,1749345047663,-440.0,0.00024195,2]
[364952581,1749345047674,-312.98840601,0.0002421,10]
[364952582,1749345047685,-599.37,0.00024242,30]
[364952583,1749345047695,-2000.0,0.000243,2]
[364952584,1749345047705,-151.0,0.000243,6]
[364952585,1749345047715,-13826.40067746,0.0002431,2]
[364952586,1749345047725,-223.0315306,0.00024327,2]
[364952587,1749345047735,-151.0,0.00024338,7]
[364952588,1749345047746,-844.90271,0.00024339,2]
[364952589,1749345047756,-151.0,0.00024339,7]
[364952590,1749345047767,-844.90271,0.00024339,2]
[364952591,1749345047779,-267.990874,0.00024339,7]
[364952592,1749345047789,-151.0,0.00024339,7]
[364952593,1749345047800,-403.733356,0.00024339,7]
[364952594,1749345047809,-403.733356,0.00024339,7]
[364952595,1749345047821,-151.0,0.00024339,7]
[364952596,1749345047831,-255.657368,0.00024339,7]
[364952597,1749345047842,-255.657368,0.00024339,7]
[364952598,1749345047853,-13826.4006774,0.00024341,2]
[364952599,1749345047864,-312.98840601,0.00024348,11]
[364952600,1749345047875,-440.0,0.00024373,2]
[364952601,1749345047886,-440.0,0.00024373,2]
[364952602,1749345047896,-440.0,0.00024373,2]
[364952603,1749345047906,-190.0,0.00024373,2]
[364952604,1749345047918,-440.0,0.00024373,2]
[364952605,1749345047929,-440.0,0.00024373,2]
[364952606,1749345047938,-517.17,0.00024373,2]
[364952607,1749345047948,-194.43870299,0.00024373,2]
[364952608,1749345047957,-440.0,0.00024375,2]
[364952609,1749345047967,-2000.0,0.00024383,7]
[364952610,1749345047977,-834.47603157,0.00024383,7]
[364952611,1749345090580,143.54,0.00018567,2]
[364952612,1749345090602,82.35638029,0.00018567,2]
[364952613,1749345095000,256.64,0.00018564,30]
[364952614,1749345175467,254.01,0.00018601,30]
[364952615,1749345263303,252.62,0.00018589,30]
[364952616,1749345344927,251.24,0.00018603,30]
[364952621,1749345812349,5000.0,0.00018,2]
[364952626,1749345896312,164.850642,0.00013699,2]
[364952628,1749346013597,5000.0,0.00018,2]
[364952631,1749346051110,-5000.0,0.00018178,2]
[364952632,1749346051131,-261.80002734,0.00018362,2]
[364952633,1749346051153,-128.26806548,0.0001838,2]
[364952634,1749346102467,-166.33929179,0.00018,2]
[364952635,1749346110661,133.66070821,0.0001,2]
[364952636,1749346110684,147.00682266,0.0001,2]
[364952648,1749346145146,-1204.5994281,0.00018,2]
[364952649,1749346145167,-2800.73561035,0.00018196,2]
[364952651,1749346163115,-2199.26438965,0.00018196,2]
[364952652,1749346171547,593.19,0.0001859,2]
[364952659,1749346187166,150.0,0.000189,2]
[364952715,1749346232210,-1246.03116335,0.00019449,2]
[364952717,1749346232222,-425.53995835,0.00019449,2]
[364952737,1749346232467,-407.96641018,0.00019449,2]
[364952739,1749346232480,-1269.1475746,0.00019449,2]
[364952798,1749346238344,-1651.31489352,0.00019449,2]
[364952799,1749346238356,-240.09950982,0.00019645,2]
[364952800,1749346238367,-200.0,0.00019999,2]
[364952801,1749346238377,-164.850642,0.00020187,2]
[364952802,1749346238387,-1186.38,0.0002028,2]
[364952803,1749346238397,-178.36577621,0.00020534,2]
[364952804,1749346238408,-300.0,0.00020544,2]
[364952805,1749346238419,-213.01382694,0.00020545,2]